Cogmind - Beta 16.1 @@@ ROGUE MODE // 2026.04.10 @ 03:22:28 Player: Foongus0298 Result: Destroyed by G-67 Veteran with Plasma Rifle Performance ------------- Evolutions (7) 3500 Regions Visited (22) 4400 Robots Destroyed (215) 1075 Value Destroyed (10115) 10115 Prototype IDs (49) 980 Alien Tech Used (2) 400 Bonus (10839) 10839 TOTAL SCORE: 31309 Bonus ------- High Alert Combat Kills 1295 Follower Combat Kills 1844 Registered with UFD 300 Met Optimus in HQ 500 Met Data Miner 300 Met Warlord at Base 500 MAIN.C Attacked Warlord 500 Built Enhanced Grunts 300 A7 Reached Mainframe 300 Used Core Reset Matrix 3000 Met Sigix 2000 Cogmind --------- Core Integrity 0/1300 Matter 300/300 Energy 100/100 System Corruption 57% Temperature Cool (0) Movement Flying (40) Location -3/Quarantine Parts ------- > --- POWER (3) -------- (None) > --- PROPULSION (3) --- Xenon Bombardment Thruster > --- UTILITY (11) ----- (None) > --- WEAPON (4) ------- (None) > --- INVENTORY (5) ---- Particle Reactor Large Matter Pod (150) Advanced KE Penetrator Peak State ------------ > --- POWER ------------ Quantum Reactor Vortex Chain Reactor > --- PROPULSION ------- Wheel Wheel Compact Wheel > --- UTILITY ---------- Advanced Power Amplifier Advanced Heat Sink Advanced Heat Sink High-capacity Storage Unit Long-range Sensor Array Advanced Signal Interpreter Experimental Core Analyzer Experimental Phase Shifter Layered Medium Armor Plating Centrium Medium Armor Plating Advanced Force Field > --- WEAPON ----------- Advanced Variable Charge Gun Vortex Driver Vortex Driver Advanced KE Penetrator > --- INVENTORY -------- Neutrino Core Enhanced Fission Core Antimatter Reactor Wheel Wheel Compact Wheel Compact Battery Large Matter Pod Advanced Kinecellerator Layered Medium Armor Plating Centrium Medium Armor Plating Centrium Medium Armor Plating Advanced Force Field Quantum Rifle Railgun Heavy Gauss Cannon Vortex Catalyst Activator [Rating: 148] Favorites ----------- Power Enhanced Fission Core Engine Heavy Ion Engine Power Core Enhanced Fission Core Reactor Vortex Chain Reactor Propulsion Wheel Treads Medium Treads Leg Flexi-carbon Leg Wheel Wheel Flight Unit Xenon Bombardment Thruster Utility High-capacity Storage Unit Device Advanced Heat Sink Storage High-capacity Storage Unit Processor Improved Signal Interpreter Protection Centrium Medium Armor Plating Weapon Railgun Energy Gun Advanced Variable Charge Gun Energy Cannon Phase Cannon Ballistic Gun Railgun Ballistic Cannon Assault Cannon Launcher Proton Missile Launcher Impact Weapon Shock Maul Slashing Weapon Scythe Build | -11 -10 -9 -8 -8 -8 -8 -6 -6 -6 -6 -5 -5 -5 -5 -5 -4 -4 -4 -4 -3 -3 -3 ------- Run | Yrd Mat Mat Mat Sto Rec Scr Fac Low Low Dat Pro Fac Ext Cet Arc Fac Upp Upp War Pro Res Qua Slots Evolved 14 | . . 2 2 . . . 4 . . . . 2 . . . 2 . . . . 2 . Power 2 | . . . 1 . . . 1 . . . . . . . . . . . . . . . Propulsion 1 | . . . . . . . . . . . . . . . . 1 . . . . . . Utility 9 | . . 1 1 . . . 2 . . . . 2 . . . 1 . . . . 2 . Weapon 2 | . . 1 . . . . 1 . . . . . . . . . . . . . . . Parts Attached 244 | 6 2 10 2 12 . 2 35 7 7 . 11 17 37 5 2 26 1 2 8 . 7 45 Power 36 | 1 . 1 1 2 . . 5 1 2 . 1 . 7 . . 4 . . 1 . 1 9 Engine 12 | 1 . 1 1 2 . . 3 . 1 . . . 3 . . . . . . . . . Core 12 | . . . . . . . 2 1 1 . 1 . 4 . . 2 . . . . . 1 Reactor 12 | . . . . . . . . . . . . . . . . 2 . . 1 . 1 8 Propulsion 37 | 2 . 2 . 3 . . 4 . 2 . 3 1 6 . . 4 . . . . 1 9 Treads 6 | 2 . . . . . . . . . . 2 . 2 . . . . . . . . . Leg 4 | . . . . . . . 1 . 1 . 1 1 . . . . . . . . . . Wheel 24 | . . 2 . 3 . . 3 . 1 . . . 4 . . 4 . . . . 1 6 Hover . | . . . . . . . . . . . . . . . . . . . . . . . Flight 3 | . . . . . . . . . . . . . . . . . . . . . . 3 Utility 102 | 1 2 2 1 6 . 2 13 3 3 . 4 7 14 3 . 16 1 1 3 . 3 17 Device 60 | . . . 1 2 . 2 5 2 3 . 3 4 7 . . 11 1 1 1 . 3 14 Storage 9 | 1 1 . . . . . 2 . . . . 1 2 . . 1 . . . . . 1 Processor 9 | . . 1 . 1 . . 4 . . . . . . . . 1 . . 1 . . 1 Hackware . | . . . . . . . . . . . . . . . . . . . . . . . Protection 24 | . 1 1 . 3 . . 2 1 . . 1 2 5 3 . 3 . . 1 . . 1 Artifact . | . . . . . . . . . . . . . . . . . . . . . . . Weapon 69 | 2 . 5 . 1 . . 13 3 . . 3 9 10 2 2 2 . 1 4 . 2 10 Energy Gun 12 | . . . . . . . 3 . . . . . 2 1 . . . . 1 . . 5 Energy Cannon 20 | . . . . . . . 2 . . . 1 9 . . . . . . 1 . 2 5 Ballistic Gun 16 | 2 . . . 1 . . 3 2 . . . . 4 1 2 1 . . . . . . Ballistic Cannon 13 | . . 4 . . . . 3 1 . . 1 . 1 . . 1 . 1 1 . . . Launcher 2 | . . . . . . . . . . . 1 . . . . . . . 1 . . . Special Weapon . | . . . . . . . . . . . . . . . . . . . . . . . Impact Weapon 3 | . . 1 . . . . 2 . . . . . . . . . . . . . . . Slashing Weapon 3 | . . . . . . . . . . . . . 3 . . . . . . . . . Piercing Weapon . | . . . . . . . . . . . . . . . . . . . . . . . Special Melee Weapon . | . . . . . . . . . . . . . . . . . . . . . . . Unidentified Prototypes 21 | . . . . 2 . . 2 . 1 . . . . 3 . 2 . . 5 . 1 5 Corrupted Parts 10 | . . . . . . . . . . . 5 1 2 1 . . . . . . . 1 System Corruption 84 | . . . . . . . . . . . 42 9 13 10 . . . . . . . 10 Parts Lost 124 | . . . . . . . 29 . 3 . 13 25 11 . . 3 . 1 . . . 39 Power 19 | . . . . . . . 7 . 1 . 2 2 1 . . . . . . . . 6 Propulsion 27 | . . . . . . . 5 . 1 . 4 3 3 . . 1 . 1 . . . 9 Utility 44 | . . . . . . . 6 . 1 . 1 11 7 . . 2 . . . . . 16 Weapon 34 | . . . . . . . 11 . . . 6 9 . . . . . . . . . 8 Highest Loss Streak 21 | . . . . . . . 21 . 2 . 5 15 3 . . 1 . 1 . . . 18 To Critical Strikes 3 | . . . . . . . . . 1 . . . . . . . . . . . . 2 Average Backups 16 | 2 7 14 17 19 20 19 11 15 16 19 16 13 10 20 19 19 20 20 19 19 18 14 Power 2 | . 1 2 2 3 3 3 . . . . . . 1 4 4 3 3 3 3 3 3 2 Propulsion 1 | 1 4 3 3 3 3 3 . . . 1 . . 1 3 3 2 2 2 2 2 2 2 Utility 7 | . . 6 8 9 9 8 8 10 9 11 11 8 4 6 6 6 8 8 8 8 6 5 Weapon 4 | . 1 2 4 4 5 5 2 4 7 7 4 5 2 7 6 6 7 7 6 6 6 4 Tool/Special . | . . . . . . . . . . . . . . . . . . . . . . . Unused Backups 34 | . . 8 . 6 . 1 2 4 1 . . . 2 3 2 2 . . 2 . . 1 Power 6 | . . 2 . 1 . . . . . . . . . . . 1 . . 1 . . 1 Propulsion 6 | . . 3 . . . . . 1 . . . . 2 . . . . . . . . . Utility 14 | . . 2 . 4 . 1 2 3 . . . . . 2 . . . . . . . . Weapon 8 | . . 1 . 1 . . . . 1 . . . . 1 2 1 . . 1 . . . Tool/Special . | . . . . . . . . . . . . . . . . . . . . . . . Average Slot Usage (%) 88 | . 90 95 98 100 100 95 78 88 88 86 78 74 76 99 100 98 100 99 88 88 90 84 Engine 4 | . 14 11 18 18 18 18 6 . 1 6 3 3 3 . . . . . . . . . Core 6 | . . . . . . . 6 9 13 13 10 4 7 17 17 11 10 10 7 5 1 . Reactor 2 | . . . . . . . . . . . . . . . . 3 5 5 5 5 6 8 Treads 1 | . 28 4 . . . . . . . . 2 7 2 . . . . . . . . . Leg 1 | . . . . . . . 4 6 10 6 8 . . . . . . . . . . . Wheel 9 | . . 17 18 18 18 18 4 6 2 6 . . 6 11 11 14 15 14 10 10 9 11 Device 17 | . . . 7 10 18 15 13 13 16 13 12 18 20 17 17 19 26 24 26 30 25 22 Storage 7 | . 14 11 9 9 9 9 7 6 6 6 6 7 7 11 11 10 10 10 7 5 4 4 Processor 6 | . . 11 9 9 9 6 10 11 6 6 4 . . . . . 5 5 7 10 9 8 Protection 6 | . 4 11 9 7 . . 2 6 3 . 2 8 7 16 17 12 5 6 4 . 11 8 Energy Gun 2 | . . . . . . . . 4 . . . 3 4 . 5 4 5 5 2 4 3 4 Energy Cannon 2 | . . . . . . . 5 9 . . 6 13 . . . . . . . . . 1 Ballistic Gun 8 | . 28 18 . . 9 9 2 3 13 13 7 . 8 19 17 10 10 10 7 9 9 6 Ballistic Cannon 7 | . . 10 27 26 18 18 6 7 13 13 7 . . 1 . 4 5 4 5 5 4 2 Peak Build Rating 148 | 6 8 22 26 31 31 49 65 62 80 77 80 88 84 99 101 117 113 113 132 134 145 148 Average Rating 76 | 5 6 15 25 30 31 35 45 57 68 77 72 69 55 95 100 109 112 110 119 127 140 123 On Entrance 66 | . 6 8 22 26 31 31 49 56 59 77 77 61 3 82 99 101 111 113 107 132 127 142 Avg Prop Armor Cover (%) 4 | . . . . . . . 5 3 3 3 3 . 8 . . . . . . . . . Naked Turns 81 | . . . . . . . . . . . . . . . . . . . . . . 81 Heaviest Build 182 | 13 51 67 77 78 71 73 103 97 107 103 121 143 138 138 134 148 137 151 165 148 173 182 Greatest Support 56 | 40 40 40 26 26 20 20 20 16 35 16 56 56 53 26 26 42 42 42 26 26 36 36 Greatest Overweight (x) 37 | . 1 2 2 3 3 3 14 6 6 6 32 37 15 5 5 5 3 5 6 5 6 13 Average Overweight (x) 3 | . . 1 2 2 3 3 4 5 3 6 3 4 4 4 5 3 3 3 5 5 5 3 Largest Inventory Capacity 20 | 8 20 20 20 20 20 20 20 20 20 20 20 20 20 20 20 20 20 20 20 20 20 20 Average Capacity 19 | 7 14 20 20 20 20 20 20 20 20 20 20 20 20 20 20 20 20 20 20 20 20 19 Most Carried 20 | 6 10 20 19 20 20 20 20 20 20 20 20 19 20 20 20 20 20 20 20 20 20 20 Average Carried 16 | 2 7 15 17 19 20 19 11 17 18 20 17 14 10 19 19 19 19 20 19 19 19 15 Final Capacity 20 | 8 20 20 20 20 20 20 20 20 20 20 20 20 20 20 20 20 20 20 20 20 20 5 Final Carried 20 | 6 10 19 19 20 20 20 17 17 20 20 14 6 20 20 20 20 20 20 20 20 20 3 Class Distribution -------------------- 46% | Scavenger-Tank 13% | Commander-Skirmisher 7% | Mutant 7% | Scavenger-Gunner 6% | Scavenger-Skirmisher 5% | Scavenger-Mutant 4% | Skirmisher 3% | Scavenger-Assassin Dominant Class ---------------- Mutant | -10/Materials Scientist-Tank | -9/Materials Skirmisher | -8/Materials Skirmisher | -8/Storage Commander-Skirmisher | -8/Recycling Commander-Skirmisher | -8/Scraptown Scavenger-Mutant | -6/Factory Scavenger-Gunner | -6/Lower Caves Scavenger-Tank | -6/Lower Caves Derelict-Gunner | -6/Data Miner Scavenger-Gunner | -5/Proximity Caves Scavenger-Tank | -5/Factory Scavenger-Tank | -5/Extension Scavenger-Tank | -5/Cetus Scavenger-Tank | -5/Archives Scavenger-Tank | -4/Factory Scavenger-Tank | -4/Upper Caves Scavenger-Tank | -4/Upper Caves Scavenger-Tank | -4/Warlord Scavenger-Skirmisher | -3/Proximity Caves Scavenger-Tank | -3/Research Scavenger-Tank | -3/Quarantine Resources | -11 -10 -9 -8 -8 -8 -8 -6 -6 -6 -6 -5 -5 -5 -5 -5 -4 -4 -4 -4 -3 -3 -3 ----------- Run | Yrd Mat Mat Mat Sto Rec Scr Fac Low Low Dat Pro Fac Ext Cet Arc Fac Upp Upp War Pro Res Qua Matter Collected 9212 | 201 104 206 . 686 283 47 731 402 554 . 731 . 978 217 70 1208 . 399 . 101 913 1381 Remotely 1593 | . . . . . . . . 78 554 . 62 . . . . 899 . . . . . . Salvage Created 9902 | . 54 341 93 274 171 . 805 182 95 . 952 417 1634 136 . 1407 . 181 . 49 1108 2003 Parts 433 | . 4 25 5 21 9 . 36 4 5 . 31 15 53 5 . 53 . 12 . 2 66 87 Haulers Intercepted 7 | . 1 3 . 1 . . . . . . . . . . . . . . . . 2 . Recyclers Shooed 3 | . . . . . . . . . . . . . . . . 2 . . . . . 1 Parts Field Recycled . | . . . . . . . . . . . . . . . . . . . . . . . Retrieved Matter . | . . . . . . . . . . . . . . . . . . . . . . . Parts Self-Destructed 43 | . . . . . . . . 6 5 . 20 . . . . . . 12 . . . . Prevented 15 | . . . . . . . . 2 . . 13 . . . . . . . . . . . Parts Restored . | . . . . . . . . . . . . . . . . . . . . . . . Kills | -11 -10 -9 -8 -8 -8 -8 -6 -6 -6 -6 -5 -5 -5 -5 -5 -4 -4 -4 -4 -3 -3 -3 ------- Run | Yrd Mat Mat Mat Sto Rec Scr Fac Low Low Dat Pro Fac Ext Cet Arc Fac Upp Upp War Pro Res Qua Combat Hostiles Destroyed 154 | . . 4 1 9 3 . 16 4 4 . 17 6 14 2 . 22 . 5 . . 13 34 Melee 1 | . . . . . . . . . . . . . 1 . . . . . . . . . Guns 69 | . . 3 . . . . 5 1 1 . 3 1 10 1 . 15 . 4 . . 10 15 Cannons 52 | . . 1 1 9 3 . 8 3 3 . 6 2 . 1 . 4 . 1 . . 2 8 AOE 17 | . . . . . . . . . . . 4 . . . . 3 . . . . . 10 Classes Destroyed 19 | . 1 4 2 3 1 . 2 . . . 1 1 . . . 1 . 1 . 1 . 1 Worker 13 | . . 1 . 1 . . 1 . . . . . 2 . . 2 . . . . 1 5 Builder 16 | . . . . . 1 . 1 . . . . . 3 . . 4 . . . . 3 4 Hauler 7 | . 1 3 . 1 . . . . . . . . . . . . . . . . 2 . Recycler 12 | . . . 1 . 1 . 1 . . . . . 5 . . 2 . . . . . 2 Mechanic 2 | . . . . 1 . . . . . . . . . . . . . . . . . 1 Operator 4 | . . 1 . . . . 1 . . . . . . . . 1 . . . . . 1 Watcher 5 | . . . . . . . . . . . . . . . . 2 . . . . 3 . Swarmer 32 | . . . . 3 1 . 1 1 3 . 3 . 1 . . 8 . 4 . . 4 3 Grunt 42 | . . 3 . 1 1 . 5 1 . . 7 3 2 . . 4 . . . . . 15 Brawler 7 | . . 1 . . . . . 1 . . 3 . . . . . . . . . . 2 Duelist 3 | . . . . . . . . . . . 2 . . . . . . . . . . 1 Protector 1 | . . . . . . . . . . . . . . . . . . . . . . 1 Sentry 20 | . . . 1 4 1 . . 1 . . 1 1 6 . . 2 . 1 . . 2 . Specialist 1 | . . . . . . . . . . . . 1 . . . . . . . . . . Hunter 16 | . . . . 1 . . 4 . 1 . 1 1 . . . 5 . . . . 2 1 Programmer 23 | . . . . . . . 4 . . . . . 3 . . 3 . . . . 5 8 Heavy 2 | . . . . . . . 2 . . . . . . . . . . . . . . . Cetus Guard 2 | . . . . . . . . . . . . . . 2 . . . . . . . . Lightning 3 | . . . . . . . . . . . . . . . . . . . . . . 3 Samaritan 1 | . . . . . . . . . . . . . . . . . . . . 1 . . Tinkerer 1 | . . . . . . . . . . . . . . . . . . 1 . . . . Thug 2 | . . . . . . . . . . . . . 1 . . 1 . . . . . . Butcher 1 | . . . . . . . . . . . . . 1 . . . . . . . . . Guerrilla 1 | . . . . . . . . . . . . . 1 . . . . . . . . . Best Kill Streak 11 | . 1 4 2 5 2 . 5 3 3 . 5 1 4 2 . 7 . 4 . . 9 11 Combat Bots Only 8 | . . 2 1 4 2 . 4 3 3 . 5 1 3 2 . 6 . 4 . . 4 8 Max Kills in Single Turn 4 | . 1 2 1 1 1 . 2 1 1 . 2 1 3 1 . 2 . 1 . 1 2 4 Gunslinging . | . . . . . . . . . . . . . . . . . . . . . . . Exploded 4 | . . . . . . . . . . . 2 . . . . 2 . . . . . 4 Melee 1 | . . . . . . . . . . . . . 1 . . . . . . . . . Uniques/NPCs Destroyed . | . . . . . . . . . . . . . . . . . . . . . . . Combat | -11 -10 -9 -8 -8 -8 -8 -6 -6 -6 -6 -5 -5 -5 -5 -5 -4 -4 -4 -4 -3 -3 -3 -------- Run | Yrd Mat Mat Mat Sto Rec Scr Fac Low Low Dat Pro Fac Ext Cet Arc Fac Upp Upp War Pro Res Qua Hostile Shots Fired 1766 | . 2 18 2 51 8 . 311 17 19 . 157 230 85 2 2 195 . 27 6 . 109 525 Missed 569 | . 1 8 . 11 3 . 72 3 4 . 44 83 27 1 2 67 . 8 3 . 59 173 Hits 1197 | . 1 10 2 40 5 . 239 14 15 . 113 147 58 1 . 128 . 19 3 . 50 352 Melee 23 | . . . . . . . . . . . 10 . . . . . . . . . . 13 Projectile 1174 | . 1 10 2 40 5 . 239 14 15 . 103 147 58 1 . 128 . 19 3 . 50 339 AOE 5 | . . . . . . . 1 . . . . 4 . . . . . . . . . . Critical Strikes 44 | . . . . . . . 5 . 2 . 2 7 4 . . 4 . . . . 1 19 Part Disruptions 7 | . . . . . . . . . . . . 5 1 . . . . . . . 1 . Damage Taken 20798 | . 18 111 26 511 42 . 3940 246 257 . 2477 3366 1270 14 15 1480 . 134 33 . 592 6266 Core 2780 | . 18 12 . 29 7 . 529 . 17 . 210 418 165 . . 55 . 18 . . 33 1269 Absorbed by Shields 3544 | . . . . . 3 . 90 . . . . 139 116 14 14 1328 . 144 34 . 503 1159 Ignored by Resistances 50 | . . . . . . . 11 . . . . . 39 . . . . . . . . . Regen/Repaired (Parts) 146 | . . . . . . . . . . . . . . . . 16 . . 130 . . . Core Remaining (%) 75 | 100 92 97 . . . 93 . . . . 11 . . . 41 . . . . 93 . . Volleys Fired 477 | . 11 18 2 31 8 . 59 7 7 . 46 24 30 6 4 58 . 8 8 4 37 109 Largest 4 | . 2 3 3 3 3 . 4 4 4 . 4 4 4 4 4 4 . 4 1 1 4 4 Hottest 368 | . 40 111 111 111 97 . 279 269 149 . 279 324 220 240 179 205 . 201 51 94 234 368 Shots Fired 1401 | . 22 48 6 84 26 . 161 22 28 . 133 52 113 22 13 219 1 32 8 4 147 260 Gun 823 | . 22 34 . . 9 . 72 5 14 . 36 5 113 17 13 166 . 24 . 4 107 182 Cannon 549 | . . 14 6 84 17 . 89 17 14 . 78 44 . 5 . 53 1 8 8 . 40 71 Launcher 29 | . . . . . . . . . . . 19 3 . . . . . . . . . 7 Special . | . . . . . . . . . . . . . . . . . . . . . . . Kinetic 898 | . 22 48 6 84 26 . 137 7 28 . 73 . 72 21 11 165 1 24 8 . 111 54 Thermal 391 | . . . . . . . 24 15 . . 41 5 41 1 2 54 . 8 . 4 36 160 Explosive . | . . . . . . . . . . . . . . . . . . . . . . . Electromagnetic 82 | . . . . . . . . . . . 19 47 . . . . . . . . . 16 Entropic 30 | . . . . . . . . . . . . . . . . . . . . . . 30 Robot Hit Streak 14 | . 5 6 2 12 3 . 14 4 1 . 11 8 7 5 8 8 . 4 . 3 8 9 Robot Miss Streak 8 | . 3 3 1 4 2 . 5 8 3 . 5 3 6 4 3 6 . 4 . 1 8 7 Penetration Max 1 | . . . . . . . 1 . . . . . 1 . 1 1 . . . . 1 1 Secondary Targets 2 | . . . . . . . . . . . . . 2 . . . . . . . . . Max Gunslinging Chain 1 | . . . . . . . . . . . . . 1 . . . . . . . . . Shots Hit Robots 733 | . 14 24 3 45 12 . 98 12 8 . 69 38 76 10 10 97 . 13 . 3 67 134 Core Hits 360 | . 3 14 2 14 6 . 33 8 5 . 42 13 36 3 3 55 . 5 . 2 40 76 Critical Kills 10 | . . . . . . . . . . . 2 . . 1 . 1 . . . . 4 2 Critical Parts Destroyed 16 | . . . . . . . 5 . . . . . 7 1 . 1 . 1 . . . 1 Critical Strikes 61 | . . . . 1 2 . 9 1 . . 2 . 9 3 1 5 . 2 . . 9 17 Burn 2 | . . . . . . . 1 . . . . . . . . . . . . . . 1 Meltdown 3 | . . . . . . . . . . . 2 . . . . . . . . . 1 . Destroy 16 | . . . . . . . 1 . . . . . 3 3 1 2 . . . . 3 3 Blast 18 | . . . . 1 2 . 3 1 . . . . . . . 3 . 1 . . 5 2 Smash 11 | . . . . . . . 4 . . . . . 6 . . . . 1 . . . . Sunder 11 | . . . . . . . . . . . . . . . . . . . . . . 11 Melee Attacks 58 | . . 1 . . . . 9 . . . . . 23 22 . . . 1 . . 1 1 Impact 55 | . . 1 . . . . 9 . . . . . 20 22 . . . 1 . . 1 1 Slashing 3 | . . . . . . . . . . . . . 3 . . . . . . . . . Piercing . | . . . . . . . . . . . . . . . . . . . . . . . Sneak Attacks 7 | . . . . . . . . . . . . . 6 . . . . 1 . . . . Combat Hostiles . | . . . . . . . . . . . . . . . . . . . . . . . Follow-up Attacks . | . . . . . . . . . . . . . . . . . . . . . . . Damage Inflicted 28653 | . 130 347 76 1139 303 . 2065 324 209 . 2627 1041 2760 230 253 4720 . 441 . 86 2405 9497 Guns 11616 | . 130 217 . . 89 . 615 80 57 . 329 101 1781 185 253 2301 . 257 . 86 1634 3501 Cannons 9693 | . . 130 76 1139 214 . 1206 244 152 . 1322 890 . 45 . 1077 . 110 . . 771 2317 Explosions 6047 | . . . . . . . . . . . 976 50 . . . 1342 . . . . . 3679 Melee 1297 | . . . . . . . 244 . . . . . 979 . . . . 74 . . . . Ramming . | . . . . . . . . . . . . . . . . . . . . . . . Kinetic 11906 | . 130 347 76 1139 303 . 1456 153 209 . 872 . 1117 230 253 2519 . 240 . . 1699 1163 Thermal 8243 | . . . . . . . 365 171 . . 1049 101 664 . . 1861 . 127 . 86 706 3113 Explosive 403 | . . . . . . . . . . . . . . . . 340 . . . . . 63 Electromagnetic 1936 | . . . . . . . . . . . 706 940 . . . . . . . . . 290 Impact 1164 | . . . . . . . 244 . . . . . 846 . . . . 74 . . . . Slashing 133 | . . . . . . . . . . . . . 133 . . . . . . . . . Piercing . | . . . . . . . . . . . . . . . . . . . . . . . Entropic 4868 | . . . . . . . . . . . . . . . . . . . . . . 4868 Highest Corruption 59 | . . . . 4 4 4 1 1 1 1 59 16 31 42 42 3 3 3 3 . 8 57 Average Corruption 10 | . . . . 3 4 4 1 1 1 1 11 13 24 38 42 2 3 3 3 . 5 13 Corruption Purged 1 | . . . . . . . 1 . . . . . . . . . . . . . . . Corruption Blocked . | . . . . . . . . . . . . . . . . . . . . . . . Effects 293 | . . . . 1 13 . 6 6 2 1 27 9 81 19 14 11 8 7 . . 13 75 Message Errors 69 | . . . . . 4 . 3 2 . 1 7 1 17 5 5 6 1 2 . . 4 11 Matter Fused 64 | . . . . . 1 . . . 1 . 6 2 18 5 1 3 3 4 . . 4 16 Heat Flow Errors 25 | . . . . . 2 . 2 2 . . 4 1 8 1 1 . 1 . . . . 3 Energy Discharges 33 | . . . . . 1 . . . . . 2 . 13 2 2 . . 1 . . 2 10 Parts Rejected 2 | . . . . . . . . . . . 2 . . . . . . . . . . . Parts Fused 3 | . . . . . . . . . . . . . . 1 1 . 1 . . . . . Data Loss (minor) 39 | . . . . 1 2 . 1 1 1 . 1 2 12 . . 2 . . . . 2 14 Data Loss (major) 10 | . . . . . 1 . . 1 . . . . 1 2 1 . 1 . . . . 3 Misfires 10 | . . . . . 2 . . . . . 1 1 2 2 . . 1 . . . . 1 Alerts 10 | . . . . . . . . . . . 2 . 6 . . . . . . . 1 1 Misdirections 10 | . . . . . . . . . . . . 1 2 . . . . . . . . 7 Weapon Failures 18 | . . . . . . . . . . . 2 1 2 1 3 . . . . . . 9 Overload Shots 13 | . . . . . . . . . . . . . . 1 . . . . . . . 12 Overflow Damage 1326 | . . . . 23 11 . 228 . 3 . 36 26 308 . . 129 . 79 . . 2 481 Projectiles 335 | . . . . 23 11 . 22 . 3 . 19 2 . . . 48 . 5 . . 2 200 Explosions 403 | . . . . . . . . . . . 17 24 . . . 81 . . . . . 281 Melee 588 | . . . . . . . 206 . . . . . 308 . . . . 74 . . . . Knockbacks 48 | . . 3 1 4 1 . 7 1 3 . 6 . 2 . . 10 . 1 . . 6 3 Impact 2 | . . . . . . . . . . . . . 2 . . . . . . . . . Kinetic 42 | . . 3 1 3 1 . 7 1 3 . 4 . . . . 10 . 1 . . 6 2 Secondary 4 | . . . . 1 . . . . . . 2 . . . . . . . . . . 1 Self-Inflicted Damage 412 | . . . . . . . . . . . 164 54 . . . 194 . . . . . . Shots 16 | . . . . . . . . . . . 9 3 . . . 4 . . . . . . Rammed . | . . . . . . . . . . . . . . . . . . . . . . . Targets Rammed . | . . . . . . . . . . . . . . . . . . . . . . . Kicked . | . . . . . . . . . . . . . . . . . . . . . . . Crushed . | . . . . . . . . . . . . . . . . . . . . . . . Highest Temperature 490 | . . 132 72 307 113 . 316 441 173 . 490 328 226 196 287 260 238 279 . . 362 443 Average Temperature 110 | . . 38 38 84 55 . 129 158 72 . 154 117 69 58 100 82 130 139 . . 111 130 Received Heat Transfer 2616 | . 9 60 9 126 7 . 282 45 27 . 480 599 312 . 4 65 . . 8 . 16 567 Effects 24 | . . . . 4 . . 3 2 . . 9 . . . 1 . . 1 . . 4 . Shutdowns 5 | . . . . . . . . 1 . . 3 . . . . . . . . . 1 . Energy Bleed 4 | . . . . . . . . 1 . . 1 . . . 1 . . 1 . . . . Interference 11 | . . . . 4 . . 3 . . . 1 . . . . . . . . . 3 . Short Circuit 2 | . . . . . . . . . . . 2 . . . . . . . . . . . Damage (minor) 2 | . . . . . . . . . . . 2 . . . . . . . . . . . Siege Activations . | . . . . . . . . . . . . . . . . . . . . . . . Martial Activations . | . . . . . . . . . . . . . . . . . . . . . . . Shielding Activations . | . . . . . . . . . . . . . . . . . . . . . . . Robots Disrupted . | . . . . . . . . . . . . . . . . . . . . . . . Combat Hostiles . | . . . . . . . . . . . . . . . . . . . . . . . Robots Corrupted 14 | . . . . . . . 4 . . . 2 3 3 . . . . . . . . 2 Combat Hostiles 11 | . . . . . . . 3 . . . 2 3 2 . . . . . . . . 1 Parts Fried 18 | . . . . . . . 6 . . . 3 3 4 . . . . . . . 1 1 Impact Corruptions 20 | . . . . . . . 8 . . . . . 10 . . . . 1 . . . 1 Robots Melted 4 | . . . . . . . . . . . 2 . 1 . . . . . . . 1 . Combat Hostiles 4 | . . . . . . . . . . . 2 . 1 . . . . . . . 1 . Parts Melted 13 | . . . . . . . 1 . . . 2 . 2 . . 3 . . . 1 4 . Heat Transferred 9445 | . . . . . . . 588 176 . . 1314 85 999 . . 1884 . 148 . 111 777 3363 Parts Sabotaged . | . . . . . . . . . . . . . . . . . . . . . . . Parts Stolen . | . . . . . . . . . . . . . . . . . . . . . . . Parts Stripped . | . . . . . . . . . . . . . . . . . . . . . . . Power Chain Reactions 3 | . . . . . . . . . . . 3 . . . . . . . . . . . Alert | -11 -10 -9 -8 -8 -8 -8 -6 -6 -6 -6 -5 -5 -5 -5 -5 -4 -4 -4 -4 -3 -3 -3 ------- Run | Yrd Mat Mat Mat Sto Rec Scr Fac Low Low Dat Pro Fac Ext Cet Arc Fac Upp Upp War Pro Res Qua Maximum Alert Level 3 | . . . . 1 . . . . . . . . 2 2 1 3 . . . . . 3 Low Security (%) 72 | 100 100 100 100 93 100 . 100 . . . . 100 79 . 8 40 . . . . 100 17 Level 1 6 | . . . . 6 . . . . . . . . 5 51 91 7 . . . . . 9 Level 2 10 | . . . . . . . . . . . . . 15 48 . 9 . . . . . 37 Level 3 10 | . . . . . . . . . . . . . . . . 42 . . . . . 35 Level 4 . | . . . . . . . . . . . . . . . . . . . . . . . Level 5 . | . . . . . . . . . . . . . . . . . . . . . . . High Security . | . . . . . . . . . . . . . . . . . . . . . . . Max Security . | . . . . . . . . . . . . . . . . . . . . . . . Peak Influence 1094 | . 7 71 26 202 126 . 160 . . . . 35 607 468 370 1094 . . . . 187 1049 Initial 332 | . . . . 6 69 . . . . . . 25 . 332 179 108 . . . . . 98 Average 207 | . . 16 8 90 57 . 19 . . . . 8 133 398 315 550 . . . . 80 569 Influence Increases 8477 | . 16 208 36 385 273 . 871 95 102 . 504 185 1159 336 231 1629 . 110 . . 509 1828 Destroy 0b10 Robot/C 3920 | . . 80 20 180 100 . 400 80 80 . 400 120 640 140 80 580 . 100 . . 260 660 Destroy 0b10 Robot/NC 340 | . 5 25 5 15 10 . 20 . . . . . 60 5 . 80 . . . . 45 70 Destroy Leader 648 | . 2 26 10 62 . . 120 . 20 . 40 20 52 10 . 116 . 10 . . 70 90 Allied During Kill 1051 | . . . . . 27 . 69 . 2 . 34 . 319 139 80 381 . . . . . . Successful Hack 95 | . 9 29 . 10 . . 16 . . . . . . . . 12 . . . . . 19 Select Force Hacks 90 | . . . . . 90 . . . . . . . . . . . . . . . . . Disable Machine 750 | . . 30 . 75 30 . 75 . . . . . 15 30 45 135 . . . . 45 270 Anti-Garrison Action 150 | . . . . . . . . . . . . . . . . . . . . . . 150 Destroy Structure 898 | . . 3 1 13 16 . 41 . . . . . 28 12 26 280 . . . . 44 434 Lose Combat Pursuer 435 | . . 15 . 30 . . 30 15 . . 30 45 45 . . 45 . . . . 45 135 Active Sensor Use 100 | . . . . . . . 100 . . . . . . . . . . . . . . . Influence Decreases 7489 | . 16 207 21 223 425 26 784 182 102 . 464 225 564 483 369 1174 506 311 58 . 334 1015 Entered New Map 1397 | . . . 1 10 109 26 . 33 . . . 15 . 263 269 202 284 50 58 . . 77 Time Decay 4301 | . 16 207 20 213 296 . 330 149 72 . 352 147 372 180 80 502 222 261 . . 334 548 Lost Part 844 | . . . . . . . 224 . 10 . 92 63 35 . . 30 . . . . . 390 Lost Ally 647 | . . . . . 20 . 230 . 20 . 20 . 157 40 20 140 . . . . . . Purge Threat 300 | . . . . . . . . . . . . . . . . 300 . . . . . . Squads Dispatched 38 | . 1 1 . . . . 9 . . . 1 3 1 1 . 5 . . . . 6 10 Investigation 5 | . . 1 . . . . 1 . . . . . . 1 . . . . . . . 2 Extermination 11 | . . . . . . . 4 . . . . . . . . 2 . . . . 2 3 Reinforcement 18 | . 1 . . . . . 4 . . . . 3 1 . . 3 . . . . 4 2 Assault 3 | . . . . . . . . . . . 1 . . . . . . . . . . 2 Garrison 1 | . . . . . . . . . . . . . . . . . . . . . . 1 Intercept . | . . . . . . . . . . . . . . . . . . . . . . . Searches Triggered . | . . . . . . . . . . . . . . . . . . . . . . . Data Miner Redirects 1 | . . . . . . . . . . . . . . . . . . . . . . 1 Construction Impeded 8 | . . . . . . . 1 . . . . 1 1 . . 2 . . . . 2 1 Haulers Reinforced . | . . . . . . . . . . . . . . . . . . . . . . . Active Scanning Responses 1 | . . . . . . . 1 . . . . . . . . . . . . . . . Cargo Convoy Interrupts 1 | . . . . . . . 1 . . . . . . . . . . . . . . . Stealth | -11 -10 -9 -8 -8 -8 -8 -6 -6 -6 -6 -5 -5 -5 -5 -5 -4 -4 -4 -4 -3 -3 -3 --------- Run | Yrd Mat Mat Mat Sto Rec Scr Fac Low Low Dat Pro Fac Ext Cet Arc Fac Upp Upp War Pro Res Qua Distress Signals 12 | . 1 . . 1 . . 2 . . . . 1 2 1 . 1 . . . . 1 2 Communications Jammed 1 | . . . . . . . . . . . . . . . . . . . . . . 1 Distress Signals 1 | . . . . . . . . . . . . . . . . . . . . . . 1 Times Spotted 290 | . 5 12 1 14 4 . 24 5 4 . 22 13 33 7 7 38 . 5 7 . 24 65 Peak Tracking Total 12 | . 2 3 1 6 2 . 6 4 3 . 5 5 6 5 2 6 . 4 8 . 7 12 Tactical Retreats 21 | . . 1 . 1 . . 2 1 . . 2 3 3 . . 3 . . . . 2 3 Traps | -11 -10 -9 -8 -8 -8 -8 -6 -6 -6 -6 -5 -5 -5 -5 -5 -4 -4 -4 -4 -3 -3 -3 ------- Run | Yrd Mat Mat Mat Sto Rec Scr Fac Low Low Dat Pro Fac Ext Cet Arc Fac Upp Upp War Pro Res Qua Traps Triggered 18 | . . . . 2 . . 2 . . . . . 8 . . 3 . . . . 1 2 Indirectly . | . . . . . . . . . . . . . . . . . . . . . . . Trap Hack Attempts . | . . . . . . . . . . . . . . . . . . . . . . . Triggered . | . . . . . . . . . . . . . . . . . . . . . . . Disarmed 4 | . . . . . . . . . . . . . . . . 4 . . . . . . Reprogrammed . | . . . . . . . . . . . . . . . . . . . . . . . Reused . | . . . . . . . . . . . . . . . . . . . . . . . Traps Extracted . | . . . . . . . . . . . . . . . . . . . . . . . Installed . | . . . . . . . . . . . . . . . . . . . . . . . Triggered . | . . . . . . . . . . . . . . . . . . . . . . . Machines | -11 -10 -9 -8 -8 -8 -8 -6 -6 -6 -6 -5 -5 -5 -5 -5 -4 -4 -4 -4 -3 -3 -3 ---------- Run | Yrd Mat Mat Mat Sto Rec Scr Fac Low Low Dat Pro Fac Ext Cet Arc Fac Upp Upp War Pro Res Qua Machines Disabled 55 | . . 2 . 5 2 . 5 1 . . 1 . 1 3 3 9 . . . . 3 20 Max in Single Turn 5 | . . 1 . 1 1 . 1 1 . . 1 . 1 1 2 4 . . . . 1 5 Garrison Access 2 | . . . . . . . . . . . . . . . . . . . . . 1 1 Machines Repaired . | . . . . . . . . . . . . . . . . . . . . . . . Machines Dismantled . | . . . . . . . . . . . . . . . . . . . . . . . Machines Sabotaged . | . . . . . . . . . . . . . . . . . . . . . . . Overloaded Fab Kills . | . . . . . . . . . . . . . . . . . . . . . . . Hacking | -11 -10 -9 -8 -8 -8 -8 -6 -6 -6 -6 -5 -5 -5 -5 -5 -4 -4 -4 -4 -3 -3 -3 --------- Run | Yrd Mat Mat Mat Sto Rec Scr Fac Low Low Dat Pro Fac Ext Cet Arc Fac Upp Upp War Pro Res Qua Machines Accessed 61 | . 2 6 1 3 3 3 5 2 1 4 . . 2 2 . 5 1 . 8 . 2 11 Terminals 30 | . 2 4 . 3 . . 1 . . . . . 2 2 . 4 . . . . 1 11 Fabricators 1 | . . . . . . . 1 . . . . . . . . . . . . . . . Repair Stations 1 | . . . . . . . . . . . . . . . . 1 . . . . . . Recycling Units 4 | . . . . . 3 . 1 . . . . . . . . . . . . . . . Scanalyzers 5 | . . 2 1 . . . 2 . . . . . . . . . . . . . . . Garrison Access 1 | . . . . . . . . . . . . . . . . . . . . . 1 . Total Hacks 155 | . 5 17 4 7 4 11 6 6 1 31 . . 4 4 . 17 1 . 12 . 2 23 Successful 106 | . 3 9 1 3 3 11 3 6 1 31 . . . 1 . 11 1 . 12 . 1 9 Failed 47 | . 2 7 2 4 1 . 3 . . . . . 4 3 . 6 . . . . 1 14 Catastrophic 9 | . . 2 . 1 . . 2 . . . . . 1 1 . . . . . . 1 1 Database Lockouts 2 | . . 1 1 . . . . . . . . . . . . . . . . . . . Manual 38 | . 3 7 . 6 4 . . . . . . . 2 1 . 5 . . 1 . 1 8 Terminals 69 | . 5 10 . 7 . . 1 . . . . . 4 4 . 14 . . . . 1 23 Fabricators 2 | . . . . . . . 2 . . . . . . . . . . . . . . . Repair Stations 3 | . . . . . . . . . . . . . . . . 3 . . . . . . Recycling Units 5 | . . . . . 4 . 1 . . . . . . . . . . . . . . . Scanalyzers 13 | . . 7 4 . . . 2 . . . . . . . . . . . . . . . Garrison Access 1 | . . . . . . . . . . . . . . . . . . . . . 1 . Terminal Hacks 79 | . 2 . . 1 . 11 1 6 1 31 . . . 1 . 6 1 . 12 . . 6 Record 35 | . . . . . . 10 . 5 . 10 . . . 1 . . . . 5 . . 4 Part Schematic 11 | . . . . . . . . . . 11 . . . . . . . . . . . . Robot Schematic 7 | . . . . . . . . . . 7 . . . . . . . . . . . . Robot Analysis 1 | . 1 . . . . . . . . . . . . . . . . . . . . . Prototype ID Bank 8 | . . . . . . . . . . 3 . . . . . . . . 5 . . . Open Door 6 | . . . . 1 . . . 1 1 . . . . . . . 1 . 2 . . . Branch Access Points 1 | . . . . . . . . . . . . . . . . . . . . . . 1 Fabricator Index 1 | . . . . . . . 1 . . . . . . . . . . . . . . . Alert Level 2 | . . . . . . . . . . . . . . . . 1 . . . . . 1 Unreport Threat 2 | . . . . . . . . . . . . . . . . 2 . . . . . . Locate Traps 1 | . . . . . . . . . . . . . . . . 1 . . . . . . Disarm Traps 1 | . . . . . . . . . . . . . . . . 1 . . . . . . Dispatch Records 1 | . . . . . . . . . . . . . . . . 1 . . . . . . Hauler Manifests 1 | . 1 . . . . . . . . . . . . . . . . . . . . . Proto ID Catalog 1 | . . . . . . 1 . . . . . . . . . . . . . . . . Fabricator Hacks 1 | . . . . . . . 1 . . . . . . . . . . . . . . . Build 1 | . . . . . . . 1 . . . . . . . . . . . . . . . Repair Station Hacks 3 | . . . . . . . . . . . . . . . . 3 . . . . . . Scan Component 2 | . . . . . . . . . . . . . . . . 2 . . . . . . Repair 1 | . . . . . . . . . . . . . . . . 1 . . . . . . Recycling Unit Hacks . | . . . . . . . . . . . . . . . . . . . . . . . Scanalyzer 8 | . . 6 1 . . . 1 . . . . . . . . . . . . . . . Insert Component 1 | . . 1 . . . . . . . . . . . . . . . . . . . . Analyze 1 | . . 1 . . . . . . . . . . . . . . . . . . . . Retrieve Study 6 | . . 4 1 . . . 1 . . . . . . . . . . . . . . . Garrison Access Hacks 1 | . . . . . . . . . . . . . . . . . . . . . 1 . Seal Access 1 | . . . . . . . . . . . . . . . . . . . . . 1 . Unauthorized Hacks 14 | . 1 3 . 2 3 . . . . . . . . . . 2 . . . . . 3 Terminals 11 | . 1 3 . 2 . . . . . . . . . . . 2 . . . . . 3 Botnet 11 | . 1 3 . 2 . . . . . . . . . . . 2 . . . . . 3 Fabricators . | . . . . . . . . . . . . . . . . . . . . . . . Repair Stations . | . . . . . . . . . . . . . . . . . . . . . . . Recycling Units 3 | . . . . . 3 . . . . . . . . . . . . . . . . . Tunnel 3 | . . . . . 3 . . . . . . . . . . . . . . . . . Scanalyzers . | . . . . . . . . . . . . . . . . . . . . . . . Garrison Access . | . . . . . . . . . . . . . . . . . . . . . . . Data Cores Recovered 1 | . . 1 . . . . . . . . . . . . . . . . . . . . Used . | . . . . . . . . . . . . . . . . . . . . . . . Hacking Detections 37 | . 2 6 1 4 1 . 5 . . . . . 2 1 . 5 . . . . 1 9 Full Trace Events 4 | . . 1 . . . . . . . . . . . 1 . . . . . . . 2 Feedback Events 1 | . . . . . . . . . . . . . . 1 . . . . . . . . Corruption 1 | . . . . . . . . . . . . . . 1 . . . . . . . . Feedback Blocked . | . . . . . . . . . . . . . . . . . . . . . . . Robot Schematics Acquired 7 | . . . . . . . . . . 7 . . . . . . . . . . . . Robots Built . | . . . . . . . . . . . . . . . . . . . . . . . Authchips . | . . . . . . . . . . . . . . . . . . . . . . . Time . | . . . . . . . . . . . . . . . . . . . . . . . Total Robot Build Rating . | . . . . . . . . . . . . . . . . . . . . . . . Part Schematics Acquired 12 | . . 1 . . . . . . . 11 . . . . . . . . . . . . Parts Built 2 | . . . . . . . 2 . . . . . . . . . . . . . . . Authchips . | . . . . . . . . . . . . . . . . . . . . . . . Time 106 | . . . . . . . 106 . . . . . . . . . . . . . . . Total Part Build Rating 12 | . . . . . . . 12 . . . . . . . . . . . . . . . Part Studies Acquired 6 | . . 4 1 . . . 1 . . . . . . . . . . . . . . . Parts Repaired 1 | . . . . . . . . . . . . . . . . 1 . . . . . . Time 53 | . . . . . . . . . . . . . . . . 53 . . . . . . Parts Recycled . | . . . . . . . . . . . . . . . . . . . . . . . Recycled Matter . | . . . . . . . . . . . . . . . . . . . . . . . Retrieved Matter . | . . . . . . . . . . . . . . . . . . . . . . . Retrieved Components . | . . . . . . . . . . . . . . . . . . . . . . . Parts Scanalyzed 1 | . . 1 . . . . . . . . . . . . . . . . . . . . Part Schematics Acquired 1 | . . 1 . . . . . . . . . . . . . . . . . . . . Parts Damaged . | . . . . . . . . . . . . . . . . . . . . . . . Bothacking | -11 -10 -9 -8 -8 -8 -8 -6 -6 -6 -6 -5 -5 -5 -5 -5 -4 -4 -4 -4 -3 -3 -3 ------------ Run | Yrd Mat Mat Mat Sto Rec Scr Fac Low Low Dat Pro Fac Ext Cet Arc Fac Upp Upp War Pro Res Qua Used RIF Installer . | . . . . . . . . . . . . . . . . . . . . . . . Robots Hacked . | . . . . . . . . . . . . . . . . . . . . . . . Non-combat . | . . . . . . . . . . . . . . . . . . . . . . . Combat . | . . . . . . . . . . . . . . . . . . . . . . . Robot Hacks Applied . | . . . . . . . . . . . . . . . . . . . . . . . Relay Couplers Released 2 | . . . . . . . . . . . . . . . . . . . . . . 2 Machine Destruction 2 | . . . . . . . . . . . . . . . . . . . . . . 2 Fabnet Peak Effective % . | . . . . . . . . . . . . . . . . . . . . . . . Robots Rewired 41 | . . . . . 20 . . 1 . . . . 20 . . . . . . . . . Allies Hacked 1 | . . . . . . . . . . . . . 1 . . . . . . . . . Hacks Repelled . | . . . . . . . . . . . . . . . . . . . . . . . Allies | -11 -10 -9 -8 -8 -8 -8 -6 -6 -6 -6 -5 -5 -5 -5 -5 -4 -4 -4 -4 -3 -3 -3 -------- Run | Yrd Mat Mat Mat Sto Rec Scr Fac Low Low Dat Pro Fac Ext Cet Arc Fac Upp Upp War Pro Res Qua Total Allies 51 | . . . . . 20 . . 1 . . 1 . 24 5 . . . . . . . . Largest Group 20 | . . . . . 20 17 17 1 1 . 1 . 12 13 12 10 . . . . . . Highest-Rated Group 832 | . . . . . 317 264 264 29 29 . 96 . 387 832 812 629 . . . . . . Highest-Rated Ally 159 | . . . . . 34 34 34 29 29 . 96 . 159 159 152 96 . . . . . . Initial UFD Resources 36 | . . . . . . . 24 24 24 24 28 28 28 28 28 32 32 32 32 36 36 36 Total Orders . | . . . . . . . . . . . . . . . . . . . . . . . Ally Attacks 339 | . . . . . 10 . 34 . 2 . 11 . 140 54 41 47 . . . . . . Total Damage 8498 | . . . . . 176 . 717 . 19 . 281 . 2620 1161 1278 2246 . . . . . . Kills 55 | . . . . . 4 . 5 . . . 3 . 21 6 4 12 . . . . . . Allies Corrupted 2 | . . . . . . . . . . . . . 1 . . 1 . . . . . . Allies Melted 2 | . . . . . . . . . . . 1 . 1 . . . . . . . . . Intel | -11 -10 -9 -8 -8 -8 -8 -6 -6 -6 -6 -5 -5 -5 -5 -5 -4 -4 -4 -4 -3 -3 -3 ------- Run | Yrd Mat Mat Mat Sto Rec Scr Fac Low Low Dat Pro Fac Ext Cet Arc Fac Upp Upp War Pro Res Qua Active Infowar (turns) 12524 | . . . 66 452 686 1471 1933 570 242 . 315 240 1407 . . 376 474 576 1039 573 722 1382 Sensors 8714 | . . . 66 452 686 1099 658 . . . 315 240 286 . . 372 474 570 1037 573 718 1168 A.S.S. 952 | . . . . . . 372 580 . . . . . . . . . . . . . . . IFF 812 | . . . . . . . . 570 242 . . . . . . . . . . . . . Terrain 9 | . . . . . . . . . . . . . . . . 3 . . . . . 6 Structural 2266 | . . . . . . . 1350 . . . . . . . . . . . . . . 916 Triangulation 1307 | . . . . . . . . . . . . . 1307 . . . . . . . . . Cloaking 3507 | . . . . . . . . . . . . . . . . 207 474 569 517 569 696 475 Jamming 161 | . . . . . . . . . . . . . . . . 118 . 3 . . . 40 Robot Analysis Total 1 | . 1 . . . . . . . . . . . . . . . . . . . . . Derelict Logs Recovered 5 | . . . . . . . . . 2 . 2 . . . . . . 1 . . . . Drone Launches . | . . . . . . . . . . . . . . . . . . . . . . . Drone Recoveries . | . . . . . . . . . . . . . . . . . . . . . . . Exploration | -11 -10 -9 -8 -8 -8 -8 -6 -6 -6 -6 -5 -5 -5 -5 -5 -4 -4 -4 -4 -3 -3 -3 ------------- Run | Yrd Mat Mat Mat Sto Rec Scr Fac Low Low Dat Pro Fac Ext Cet Arc Fac Upp Upp War Pro Res Qua Turns Passed 18603 | 99 288 752 67 629 686 1484 2117 643 688 146 1311 604 1685 375 179 1359 474 662 1044 573 1002 1736 Spaces Moved 9649 | 55 128 501 51 365 321 1241 873 355 281 82 414 120 640 167 96 766 368 465 544 360 497 959 Core 191 | 3 . . . . . . 3 . . . 4 10 8 . . . . . . . . 163 Treads 472 | 52 128 59 . . . . . . . . 62 108 63 . . . . . . . . . Legs 662 | . . . . . . . 249 . 146 . 265 2 . . . . . . . . . . Wheels 8301 | . . 442 51 365 321 1241 621 355 135 82 83 . 569 167 96 766 368 465 544 360 497 773 Hover . | . . . . . . . . . . . . . . . . . . . . . . . Flight 23 | . . . . . . . . . . . . . . . . . . . . . . 23 Fastest Speed 34 | 50 160 105 110 110 115 115 130 165 165 180 180 240 100 140 155 121 128 128 155 155 136 34 Average Speed 153 | 154 196 126 110 112 115 115 192 168 223 180 269 409 165 154 155 125 128 129 155 155 162 127 Slowest Speed 1900 | 160 240 240 110 115 115 115 750 180 400 180 1650 1900 800 155 155 155 128 155 170 155 170 275 Overloaded Moves . | . . . . . . . . . . . . . . . . . . . . . . . Propulsion Burnouts . | . . . . . . . . . . . . . . . . . . . . . . . Robots Hopped 4 | . . . . . . . . . . . . . . . . . . . . . . 4 Potential Cave-ins 8 | . . . . . . . . . . . . . 1 . . . . . 7 . . . Cave-ins Triggered . | . . . . . . . . . . . . . . . . . . . . . . . Exploration Rate (%) 48 | 3 32 34 10 54 55 85 23 46 46 70 55 5 80 71 77 23 54 63 80 60 15 72 Regions Visited 22 Branch Regions 15 Pre-discovered Areas 6 | . . . . . 3 . . 1 . 1 . . . . . . . 1 . . . . Known Exits Taken 18 | . . 1 1 1 1 1 1 1 1 1 1 1 . . 1 1 1 1 1 1 1 . Unknown Exits Taken 4 | 1 1 . . . . . . . . . . . 1 1 . . . . . . . . Scrap Searched 15 | . . . . . . 7 . . 5 . . . . . . . . 2 . 1 . . Spaces Dug 15 | . . . . . . . 4 . . . . . . . . . . . 9 . 1 1 Terrain Destroyed 504 | . . 2 1 9 7 . 24 4 7 . 32 . 7 1 . 141 1 17 9 1 20 221 Melee 2 | . . . . . . . . . . . . . . . . . . . . . 1 1 Projectile 241 | . . 2 1 9 7 . 24 4 7 . 22 . 7 1 . 67 1 17 9 1 19 43 AOE 261 | . . . . . . . . . . . 10 . . . . 74 . . . . . 177 Terrain Rammed . | . . . . . . . . . . . . . . . . . . . . . . . Walls Destroyed . | . . . . . . . . . . . . . . . . . . . . . . . Machines Disabled . | . . . . . . . . . . . . . . . . . . . . . . . Actions | -11 -10 -9 -8 -8 -8 -8 -6 -6 -6 -6 -5 -5 -5 -5 -5 -4 -4 -4 -4 -3 -3 -3 --------- Run | Yrd Mat Mat Mat Sto Rec Scr Fac Low Low Dat Pro Fac Ext Cet Arc Fac Upp Upp War Pro Res Qua Total 12297 | 66 145 583 57 517 620 1301 1174 388 325 81 508 193 1148 226 118 1024 371 496 736 370 589 1261 Wait 918 | . . 19 1 79 74 44 138 1 16 . 22 14 172 13 8 120 . 9 145 . 5 38 Move 9620 | 54 127 500 50 364 320 1240 872 354 280 81 413 119 639 166 95 765 367 464 543 359 496 952 Hop 3 | . . . . . . . . . . . . . . . . . . . . . . 3 Pick Up 156 | 6 4 21 2 8 . 3 22 2 6 . 5 7 26 3 3 12 1 . 9 1 2 13 Fast Attach 178 | 6 2 1 . 6 . 4 22 4 6 . 4 4 23 4 2 21 1 2 5 . 9 52 Attach 107 | . . 2 2 . . . 26 2 1 . 12 15 9 . . 5 . . 4 2 2 25 Detach 23 | . . . . . . 2 4 4 2 . . 1 2 1 1 1 . . . . 1 4 Swap 128 | . . 8 . 13 . . 9 1 1 . 4 7 13 4 . 15 . 10 6 3 20 14 Drop 189 | . 1 13 . 16 . 8 13 4 6 . 2 2 10 7 5 27 2 2 16 1 8 46 Fire 477 | . 11 18 2 31 8 . 59 7 7 . 46 24 30 6 4 58 . 8 8 4 37 109 Melee 58 | . . 1 . . . . 9 . . . . . 23 22 . . . 1 . . 1 1 Ram . | . . . . . . . . . . . . . . . . . . . . . . . Kick . | . . . . . . . . . . . . . . . . . . . . . . . Crush . | . . . . . . . . . . . . . . . . . . . . . . . Escape Stasis 48 | . . . . . . . . . . . . . 36 . . . . . . . 8 4 Rewire 392 | . . . . . 218 . . 9 . . . . 165 . . . . . . . . . Trap . | . . . . . . . . . . . . . . . . . . . . . . . Miscellaneous . | . . . . . . . . . . . . . . . . . . . . . . . Route ------- -11/Scrapyard -10/Materials -9/Materials (discovered 2 exits: *Mat / [*Min]) -8/Materials -8/Storage -8/Recycling -8/Scraptown (discovered 2 exits: *Fac x2) -6/Factory -6/Lower Caves -6/Lower Caves (discovered 2 exits: Fac / *Dat) -6/Data Miner -5/Proximity Caves -5/Factory (discovered 5 exits: Fac x3 / Upp / *Ext) -5/Extension (discovered 2 exits: *Fac / *Cet) -5/Cetus -5/Archives (discovered 2 exits: *Fac / [*Hub]) -4/Factory -4/Upper Caves -4/Upper Caves -4/Warlord -3/Proximity Caves -3/Research -3/Quarantine (discovered 1 exit: *Res) History --------- Turn | Location | Event 43 | -11/Scrapyard | Discovered new exit (range 15) 100 | -11/Scrapyard | Entered Materials 217 | -10/Materials | Discovered new exit (range 16) 317 | -10/Materials | Build established: Mutant 388 | -10/Materials | Entered another Materials area 388 | -9/Materials | Evolved 2 slots: Utility x1, Weapon x1 879 | -9/Materials | Discovered new exit (range 11) 889 | -9/Materials | Central database locked down 993 | -9/Materials | Build established: Scientist-Tank 1136 | -9/Materials | Discovered new exit (range 3) 1139 | -9/Materials | Identified exit to Materials 1140 | -9/Materials | Entered another Materials area 1140 | -8/Materials | Evolved 2 slots: Power x1, Utility x1 1176 | -8/Materials | Discovered new exit (range 16) 1186 | -8/Materials | Central database locked down 1203 | -8/Materials | Identified exit to Storage 1207 | -8/Materials | Entered Storage 1430 | -8/Storage | Build established: Skirmisher 1832 | -8/Storage | Used back door to open Recycling access 1832 | -8/Storage | Discovered new exit (range 5) 1835 | -8/Storage | Identified exit to Recycling 1836 | -8/Storage | Entered Recycling 2213 | -8/Recycling | Build established: Commander-Skirmisher 2419 | -8/Recycling | Scanned before Scraplab entrance 2436 | -8/Recycling | Entered Scraplab 2444 | -8/Recycling | Lost 3 allies 2445 | -8/Recycling | Discovered new exit (range 2) 2445 | -8/Recycling | Identified exit to Scraptown 2522 | -8/Recycling | Entered Scraptown 2522 | -8/Scraptown | Accompanied by 17 allies 2525 | -8/Scraptown | System corruption cleaned by C-Scrubber 2666 | -8/Scraptown | Visited Shadow of the Wyrm 2705 | -8/Scraptown | Visited UFD Registry 2705 | -8/Scraptown | Registered with UFD as "Monoflow" 2736 | -8/Scraptown | Visited The Evicted 2775 | -8/Scraptown | Visited Bundlers 2860 | -8/Scraptown | Visited Awakened 2901 | -8/Scraptown | Visited Symbiants 2924 | -8/Scraptown | Visited Cyclists 2933 | -8/Scraptown | Entered Cyclist Reading Room 3056 | -8/Scraptown | Discovered new exit (range 11) 3303 | -8/Scraptown | Visited Scrapoid Pod Storage 3312 | -8/Scraptown | Found Scrapoid Pod 3344 | -8/Scraptown | Visited Botcube Research 3361 | -8/Scraptown | Visited Science Guys 3573 | -8/Scraptown | Visited Junk Repository 3607 | -8/Scraptown | Visited Scrap Suit Storage 3622 | -8/Scraptown | Visited Infowarlord's Domain 3634 | -8/Scraptown | Found Active Sensor Suite 3681 | -8/Scraptown | Discovered new exit (range 3) 3683 | -8/Scraptown | Identified exit to Factory 3772 | -8/Scraptown | Visited LU-1G1's Boring Crew 3891 | -8/Scraptown | Met Optimus 3891 | -8/Scraptown | Accepted into 0bPrime 4006 | -8/Scraptown | Entered Factory 4006 | -6/Factory | Accompanied by 17 allies 4006 | -6/Factory | Evolved 4 slots: Power x1, Utility x2, Weapon x1 4234 | -6/Factory | Lost 4 allies 4407 | -6/Factory | Lost 9 allies 4454 | -6/Factory | Lost 5 parts (2n3w) 4599 | -6/Factory | Core integrity fell below 50% 4624 | -6/Factory | Lost 21 parts (5p3n6u7w) 4925 | -6/Factory | Build established: Scavenger-Mutant 5121 | -6/Factory | Fabricated Remote Force Field (x2) 5398 | -6/Factory | Cargo convoy interrupted 5783 | -6/Factory | Spotted B-75 Beast 5921 | -6/Factory | Build established: Scavenger-Assassin 6018 | -6/Factory | Discovered new exit (range 11) 6121 | -6/Factory | Identified exit to Lower Caves 6123 | -6/Factory | Entered Lower Caves 6162 | -6/Lower Caves | Attracted the attention of an 0b10 outpost 6313 | -6/Lower Caves | Build established: Scavenger-Gunner 6573 | -6/Lower Caves | Entered an active Warlord outpost 6612 | -6/Lower Caves | Learned Factory trap positions 6612 | -6/Lower Caves | Learned Armory stockpile data 6612 | -6/Lower Caves | Learned Factory garrison access intel 6749 | -6/Lower Caves | Discovered new exit (range 9) 6764 | -6/Lower Caves | Identified exit to Lower Caves 6766 | -6/Lower Caves | Entered another Lower Caves area 6766 | -6/Lower Caves | Accompanied by 1 ally 6767 | -6/Lower Caves | Identified exit to Factory 6890 | -6/Lower Caves | Build established: Scavenger-Tank 6967 | -6/Lower Caves | Learned Factory stockpile data 7110 | -6/Lower Caves | Found Prototype Device 7110 | -6/Lower Caves | Identified Heart of Steel 7406 | -6/Lower Caves | Encountered a Warlord checkpoint 7438 | -6/Lower Caves | Discovered new exit (range 9) 7452 | -6/Lower Caves | Identified exit to Data Miner 7454 | -6/Lower Caves | Entered Data Miner 7454 | -6/Data Miner | Discovered new exit (range 6) 7489 | -6/Data Miner | Met Data Miner 7526 | -6/Data Miner | Learned location of Section 7 (-3) 7526 | -6/Data Miner | Acquired the access code to Warlord's prototype stash 7559 | -6/Data Miner | Received God Mode back door access code from Data Miner 7598 | -6/Data Miner | Identified exit to Proximity Caves 7600 | -6/Data Miner | Entered Proximity Caves 7602 | -5/Proximity Caves | Learned 8 Factory zone layouts 7606 | -5/Proximity Caves | Unaware initiated a cargo recovery operation 7627 | -5/Proximity Caves | Build established: Derelict-Gunner 7853 | -5/Proximity Caves | Learned location of 2 exits from Factory 8379 | -5/Proximity Caves | Lost 4 parts (1n3w) 8558 | -5/Proximity Caves | Attracted the attention of an 0b10 outpost 8576 | -5/Proximity Caves | Core integrity fell below 20% 8608 | -5/Proximity Caves | System corruption reached 10% 8674 | -5/Proximity Caves | Lost 5 parts (2p2n1u) 8707 | -5/Proximity Caves | System corruption reached 30% 8911 | -5/Proximity Caves | Entered Factory 8911 | -5/Factory | Evolved 2 slots: Utility x2 8912 | -5/Factory | Identified exit to Factory 8912 | -5/Factory | Identified exit to Upper Caves 8913 | -5/Factory | Identified exit to Extension 8915 | -5/Factory | Loaded intel: 95 trap records 8917 | -5/Factory | Loaded intel: 4 garrison access locations 9018 | -5/Factory | Build established: Scavenger-Tank 9373 | -5/Factory | System corruption reached 10% 9416 | -5/Factory | Lost 15 parts (1p3n5u6w) 9515 | -5/Factory | Entered Extension 9546 | -5/Extension | Lost 10 parts (1p6u3w) 9806 | -5/Extension | Lost 3 parts (2n1u) 9958 | -5/Extension | Rescued a captive Derelict 10018 | -5/Extension | Core integrity fell below 50% 10054 | -5/Extension | Lost 3 parts (1p2u) 10390 | -5/Extension | Rescued a captive Derelict 10391 | -5/Extension | Rescued a captive Derelict 10392 | -5/Extension | Spotted B-75 Beast 10408 | -5/Extension | Spotted B-75 Beast 10432 | -5/Extension | Allies destroyed B-75 Beast 10440 | -5/Extension | Allies destroyed B-75 Beast 10441 | -5/Extension | Lost 3 parts (1n2u) 10513 | -5/Extension | Lost 9 allies 10640 | -5/Extension | Disrupted transfer network 10695 | -5/Extension | Rescued A7 11104 | -5/Extension | System corruption reached 30% 11108 | -5/Extension | Discovered exit to Factory (range 10) 11110 | -5/Extension | Discovered new exit (range 6) 11200 | -5/Extension | Entered Cetus 11200 | -5/Cetus | Accompanied by 9 allies (A7) 11205 | -5/Cetus | Acquired a Cetus Manufacturing Module code from A7 11219 | -5/Cetus | Spotted Cetus Guard 11219 | -5/Cetus | Spotted Cetus Guard 11222 | -5/Cetus | Spotted Cetus Guard 11223 | -5/Cetus | Spotted Cetus Guard 11228 | -5/Cetus | Allies destroyed Cetus Guard 11229 | -5/Cetus | Destroyed Cetus Guard 11233 | -5/Cetus | Destroyed Cetus Guard 11239 | -5/Cetus | Allies destroyed Cetus Guard 11348 | -5/Cetus | Started Cetus Manufacturing Module 11373 | -5/Cetus | Manufactured an Enhanced Grunt 11398 | -5/Cetus | Manufactured an Enhanced Grunt 11423 | -5/Cetus | Manufactured an Enhanced Grunt 11448 | -5/Cetus | Manufactured an Enhanced Grunt 11473 | -5/Cetus | Manufactured an Enhanced Grunt 11515 | -5/Cetus | Escorted A7 to Cetus Mainframe 11537 | -5/Cetus | Discovered new exit (range 15) 11575 | -5/Cetus | Entered Archives 11575 | -5/Archives | Accompanied by 12 allies (A7) 11580 | -5/Archives | Received a hacking code to weaken MAIN.C 11629 | -5/Archives | Discovered exit to Factory (range 14) 11682 | -5/Archives | Unable to access archive contents 11688 | -5/Archives | Discovered new exit (range 15) 11697 | -5/Archives | Unable to access archive contents 11754 | -5/Archives | Entered Factory 11754 | -4/Factory | Accompanied by 10 allies 11754 | -4/Factory | Evolved 2 slots: Propulsion x1, Utility x1 12093 | -4/Factory | Repaired Broken Hpw. Tractor Beam 12167 | -4/Factory | Found Prototype Device 12167 | -4/Factory | Identified Exp. Thermal Shield 12301 | -4/Factory | P-70 Sage assimilated allied BZ-VB4(b) 12662 | -4/Factory | Spotted B-86 Titan 13105 | -4/Factory | Discovered new exit (range 5) 13110 | -4/Factory | Identified exit to Upper Caves 13113 | -4/Factory | Entered Upper Caves 13571 | -4/Upper Caves | Discovered new exit (range 12) 13585 | -4/Upper Caves | Identified exit to Upper Caves 13587 | -4/Upper Caves | Entered another Upper Caves area 13753 | -4/Upper Caves | Encountered a Warlord checkpoint 13896 | -4/Upper Caves | Attracted the attention of an 0b10 checkpoint 14196 | -4/Upper Caves | Discovered new exit (range 12) 14221 | -4/Upper Caves | Identified exit to Warlord 14249 | -4/Upper Caves | Entered Warlord 14302 | -4/Warlord | System corruption cleaned by Quarantine Array 14478 | -4/Warlord | Rebuked by Warlord 14503 | -4/Warlord | Warlord's base attacked by MAIN.C 14672 | -4/Warlord | Opened Warlord's prototype stash 14678 | -4/Warlord | Found Prototype Reactor 14678 | -4/Warlord | Identified Vortex Chain Reactor 14689 | -4/Warlord | Found Prototype Device 14689 | -4/Warlord | Identified Exp. Phase Shifter 14702 | -4/Warlord | Found Prototype Processor 14702 | -4/Warlord | Identified Exp. Core Analyzer 14812 | -4/Warlord | Found Prototype Launcher 14812 | -4/Warlord | Identified Vortex Catalyst Activator 14819 | -4/Warlord | Found Prototype Energy Cannon 14819 | -4/Warlord | Identified Vortex Driver 14823 | -4/Warlord | Found Vortex Driver 14853 | -4/Warlord | Warlord forces counterattacked 15081 | -4/Warlord | Opened side exit 15178 | -4/Warlord | Warlord base infiltrated, sounded retreat 15268 | -4/Warlord | Discovered new exit (range 15) 15286 | -4/Warlord | Spotted Executioner 15291 | -4/Warlord | Identified exit to Proximity Caves 15293 | -4/Warlord | Entered Proximity Caves 15512 | -3/Proximity Caves | Build established: Scavenger-Skirmisher 15860 | -3/Proximity Caves | Discovered new exit (range 5) 15864 | -3/Proximity Caves | Identified exit to Research 15866 | -3/Proximity Caves | Entered Research 15866 | -3/Research | Evolved 2 slots: Utility x2 16162 | -3/Research | Build established: Scavenger-Tank 16380 | -3/Research | Found Prototype Device 16380 | -3/Research | Identified Adv. Kinecellerator 16839 | -3/Research | Discovered new exit (range 15) 16866 | -3/Research | Identified exit to Quarantine 16868 | -3/Research | Entered Quarantine 16980 | -3/Quarantine | Found Prototype Device 16980 | -3/Quarantine | Identified Exp. Focal Shield 17139 | -3/Quarantine | Met incapacitated Sigix Warrior 17139 | -3/Quarantine | Lockdown squad dispatched 17162 | -3/Quarantine | Incoming investigation squad redirected 17182 | -3/Quarantine | Spotted Lightning 17185 | -3/Quarantine | Spotted Lightning 17188 | -3/Quarantine | Spotted Lightning 17188 | -3/Quarantine | Found Alien Artifact 17188 | -3/Quarantine | Identified Core Reset Matrix 17188 | -3/Quarantine | Used Core Reset Matrix 17192 | -3/Quarantine | Sensed 8 artifacts in vicinity 17196 | -3/Quarantine | Destroyed Lightning 17217 | -3/Quarantine | Destroyed Lightning 17226 | -3/Quarantine | Destroyed Lightning 17247 | -3/Quarantine | Destroyed 8 combat bots 17663 | -3/Quarantine | Discovered new exit (range 14) 17681 | -3/Quarantine | Identified exit to Research 17710 | -3/Quarantine | Found Subatomic Replicator 17722 | -3/Quarantine | Used Subatomic Replicator to replicate Centrium Medium Armor Plating 17883 | -3/Quarantine | System corruption reached 10% 18155 | -3/Quarantine | Garrison activated, responded to threat 18212 | -3/Quarantine | Destroyed 8 combat bots 18235 | -3/Quarantine | Lost 14 parts (2p3n7u2w) 18392 | -3/Quarantine | System corruption reached 30% 18457 | -3/Quarantine | Lost 18 parts (2p3n8u5w) 18501 | -3/Quarantine | Released all parts (9) 18531 | -3/Quarantine | Core integrity fell below 50% 18532 | -3/Quarantine | Lost 3 parts (1p1n1w) 18560 | -3/Quarantine | Core integrity fell below 20% 18604 | -3/Quarantine | Destroyed by G-67 Veteran with Plasma Rifle Last Messages --------------- 18585_ Acquired Prototype Ballistic Gun. 18586_ Acquired 16 matter. 18587_ Acquired Xenon Bombardment Thruster. 18589_ Acquired Lgt. Antimatter Reactor. 18590_ Acquired 20 matter. 18591_ Acquired Xenon Bombardment Thruster. 18592_ R:4 9TFDK0>DEGHEYL=9PJM/XVZ2P9WL 18595_ Triggered Stasis Trap. 18595_ A bubble of rippling energy engulfs the area. 18595_ Field strength at 94. 18595_ Field strength at 74. 18596_ Field strength at 68. 18597_ Field strength at 56. 18597_ Xenon Bombardment Thruster destroyed. 18598_ Field strength at 12. 18599_ Stasis field depleted. 18601_ Lgt. Antimatter Reactor destroyed. [Achievement: 30k Club] Map ----- +----------------------------------------------------+ | | | | | ????????????############# ###????######???????#### | | ????????????############ *#############???????## | | ????????????## =! " ! ########""########### " | | ????????????## =[!|"!"######! #T ########### " | | ????????????## "!=!=!!==|== ! / + " | | ????????????##### [![##*######! ######### # " | | ????????????##### !!*##=################## # | | ????????????#######+########?#######?????## ### | | ????????????## T ##??????????????## ### | | ????????????## ##??????????????## ### | | ????????????## ##??????????????## ### | | ????????????## """ """ ##???????######### ### | | ????????????## """ """ ##???????#########+## ### | | ????????????## """ """ ##???????## # ### | | ????????????## ##???????## # ### | | ????????????######################## # ### | | ###?????????##### ############## # | | ###????????????## + + # ### | | ######????????## " ############## """ # ### | | "######????????## "" ############ " # ### | | ##????????## "" ############ # " # ### | | " ##????????## "" ##################+##### ### | | " !##????????## " # T = | | " ############ "" # @ [ | | " ############ "" # ^ | | ### ! ## "" # k ^ | | * ### ! !## " # """ """ ######+######+## | | ### ## # """ """ ## # | | + += ]] ####+### b "" """ ## # "" | | ######## ]] # ^ ## # """ | | ######## ]] + """ """ ## # "T | | """##?## # = g """ """ ## # """ | | ! ##?## """ +[% g """ """ ## ] # "" | | *"##?## """ ## ##### ## # | | " "##?## """ ## ##### """ """ ##[ " # [ | | """##?## ##%## ## """ """ ## "R" # | | #####?########### # ## """ """ ## """ ####### | | #####?########"##!#!=## ## ? ####### | | ????####"""G"""*#]#[### ####?######????? | | ????####""" " "##/##### ###########????? | | ???? # !!%[ =%####+######+#+########???????? | | ???? # * !% = # ## ##???????? | | ???? # """ "! %! # ## "" """ ##???????? | | ??? # " " [|% =# # """ """ ##???????? | | ???? # """ = |%# # """ == """ ##???????? | | ?????# =!# # == ##???????? | | ?"" #####+###+###### # """ =* """ ##???????? | | ?"" # # """ """ ##???????? | +----------------------------------------------------+ Best States ------------- Heat Dissipation 106 Coolant Potential 80 Energy Generation 75 Energy Capacity 1300 Matter Stores 430 Matter Capacity 450 Sight Range 16 Robot Scan Range 20 Terrain Scan Range 14 Terrain Scan Density 85 Jamming Range 16 Cloak Strength 2 Armor Coverage 1050 Resistance: TH 15 Resistance: EM 20 Power Shielding 66 Phase Shifting 20 Evasion (%) 62 Targeting Accuracy 13 Target Analysis 5 Core Analysis 8 Recoil Reduction 2 Matter Filtering 30 Kinecelleration 50 Item Schematics ----------------- None Robot Schematics ------------------ None Fabricated ------------ Remote Force Field | x2 | -6/Factory | Preloaded Repaired ---------- Hpw. Tractor Beam | 46% | -4/Factory | Broken Studied --------- None Alien Tech Used ----------------- Core Reset Matrix Subatomic Replicator Achievements -------------- 30k Club False Reunion More Power To You Reappropriation Challenges ------------ None Game ------ Seed RainbowSixReplica Manual? 0 Play Time 04:09:10 Cumulative 75.3 hours Start 2026.04.09 @ 22:32:32 End 2026.04.10 @ 03:22:28 Sessions 1 Manual Loads 0 Difficulty Rogue Special Mode None Game No. 53 Rogue 53 Adventurer 0 Explorer 0 Win Type - Total 1 Types 1/0/0/0/0/0/0/0/0/0 Lore% 43 Gallery% 44 Achievement% 37 Wizard Run 0 Options --------- Layout 1 ASCII 0 Keyboard 0 Movement Mouse Keybinds 0 Fullscreen 1 Font 24/Smallcaps Map View 50x35 Zoom Use 0% Tactical HUD 1 Map Filters NONE Filters NONE Steam 1 RUN: 1de09634-c67e-40de-a047-cad0611a3c2a